Cogmind - Beta 10.2 @@@ ROGUE MODE // 2021.07.04 @ 05:25:31 Player: Demise Result: Destroyed by as-13542 with Assembled Heavy Rifle Performance ------------- Evolutions (0) 0 Regions Visited (2) 400 Robots Destroyed (42) 210 Value Destroyed (753) 753 Prototype IDs (0) 0 Alien Tech Used (0) 0 Bonus (0) 0 TOTAL SCORE: 1363 Bonus ------- None Cogmind --------- Core Integrity 0/250 Matter 282/300 Energy 100/100 System Corruption 4% Temperature Cool (0) Movement Treading (180) Ox1 Location -10/Mines Parts ------- > --- POWER (1) -------- (None) > --- PROPULSION (2) --- Light Treads > --- UTILITY (2) ------ Large Storage Unit Large Storage Unit > --- WEAPON (2) ------- Assault Rifle Assault Rifle > --- INVENTORY (16) --- Ion Engine Large Storage Unit High-capacity Matter Pod (200) Signal Interpreter Armor Integrity Analyzer Weapon Shielding Light Armor Plating Light Armor Plating Light Armor Plating Hacking Suite EM Pulse Gun Assault Rifle Mining Laser Mining Claw Peak State ------------ > --- POWER ------------ Ion Engine > --- PROPULSION ------- Light Treads Light Treads > --- UTILITY ---------- Small Storage Unit Medium Storage Unit > --- WEAPON ----------- Assault Rifle Assault Rifle > --- INVENTORY -------- Ion Engine Light Treads Light Armor Plating Light Armor Plating Light Armor Plating Assault Rifle Assault Rifle Assault Rifle Light Assault Rifle Grenade Launcher [Rating: 8] Favorites ----------- Power Ion Engine Engine Ion Engine Propulsion Light Treads Treads Light Treads Utility Large Storage Unit Device Structural Scanner Storage Large Storage Unit Processor Signal Interpreter Weapon Assault Rifle Energy Gun Small Laser Energy Cannon Beam Cannon Ballistic Gun Assault Rifle Launcher Grenade Launcher Build | -11 -10 -10 ------- Run | Scr Mat Min Slots Evolved . | . . . Power . | . . . Propulsion . | . . . Utility . | . . . Weapon . | . . . Parts Attached 33 | 5 25 3 Power 3 | 1 2 . Engine 3 | 1 2 . Core . | . . . Reactor . | . . . Propulsion 8 | 2 6 . Treads 8 | 2 6 . Leg . | . . . Wheel . | . . . Hover . | . . . Flight . | . . . Utility 8 | . 8 . Device 1 | . 1 . Storage 6 | . 6 . Processor 1 | . 1 . Hackware . | . . . Protection . | . . . Artifact . | . . . Weapon 14 | 2 9 3 Energy Gun 1 | 1 . . Energy Cannon 1 | . 1 . Ballistic Gun 11 | 1 8 2 Ballistic Cannon . | . . . Launcher 1 | . . 1 Special Weapon . | . . . Impact Weapon . | . . . Slashing Weapon . | . . . Piercing Weapon . | . . . Special Melee Weapon . | . . . Unidentified Prototypes . | . . . Parts Lost 7 | . 3 4 Power 1 | . . 1 Propulsion 2 | . 1 1 Utility . | . . . Weapon 4 | . 2 2 Highest Loss Streak 4 | . 1 4 Average Slot Usage (%) 93 | . 98 73 Engine 11 | . 14 1 Treads 25 | . 27 15 Storage 25 | . 25 28 Energy Gun 1 | . 1 . Ballistic Gun 25 | . 25 27 Naked Turns . | . . . Heaviest Build 41 | 5 41 41 Greatest Support 40 | 20 40 40 Greatest Overweight (x) 1 | 1 1 1 Average Overweight (x) . | . . 1 Largest Inventory Capacity 16 | 4 16 16 Average Capacity 11 | 4 11 16 Most Carried 16 | 4 16 16 Average Carried 10 | 3 9 14 Final Capacity 16 | 4 16 16 Final Carried 16 | 4 16 14 Class Distribution -------------------- 85% | Mutant 14% | Scavenger-Mutant Dominant Class ---------------- Mutant | -10/Materials Mutant | -10/Mines Resources | -11 -10 -10 ----------- Run | Scr Mat Min Matter Collected 1292 | 267 920 105 Remotely . | . . . Salvage Created 1350 | 96 1128 126 Parts 94 | 4 85 5 Haulers Intercepted 2 | . 2 . Recyclers Shooed 3 | . 3 . Parts Field Recycled . | . . . Retrieved Matter . | . . . Parts Self-Destructed . | . . . Prevented . | . . . Kills | -11 -10 -10 ------- Run | Scr Mat Min Combat Hostiles Destroyed 30 | . 20 10 Melee 1 | . 1 . Guns 23 | . 18 5 Cannons 1 | . 1 . AOE 5 | . . 5 Classes Destroyed 11 | 2 7 2 Worker 2 | . 2 . Builder 3 | . 3 . Tunneler 2 | 1 1 . Hauler 2 | . 2 . Recycler 5 | 1 4 . Operator 2 | . 2 . Watcher 3 | . 3 . Swarmer 9 | . 9 . Grunt 13 | . 11 2 Demolisher 1 | . . 1 Assembled 7 | . . 7 Best Kill Streak 9 | 1 5 9 Combat Bots Only 9 | . 4 9 Max Kills in Single Turn 2 | 1 2 2 Gunslinging 1 | . 1 . Exploded 2 | . . 2 Melee 1 | . 1 . Uniques/NPCs Destroyed . | . . . Combat | -11 -10 -10 -------- Run | Scr Mat Min Damage Taken 1538 | . 852 686 Core 251 | . 125 126 Absorbed by Shields . | . . . Core Remaining (%) 100 | 100 . . Volleys Fired 151 | 17 120 14 Largest 2 | 2 2 2 Hottest 80 | 60 80 50 Shots Fired 293 | 34 233 26 Gun 270 | 34 214 22 Cannon 19 | . 19 . Launcher 4 | . . 4 Special . | . . . Kinetic 233 | 17 194 22 Thermal 56 | 17 39 . Explosive 4 | . . 4 Electromagnetic . | . . . Robot Hit Streak 14 | 5 14 7 Robot Miss Streak 5 | 2 5 2 Penetration Max . | . . . Secondary Targets 4 | . 1 3 Max Gunslinging Chain 1 | . 1 1 Shots Hit Robots 196 | 19 157 20 Core Hits 77 | 4 54 19 Critical Hits 3 | 1 2 . Critical Kills 3 | 1 2 . Critical Parts Destroyed . | . . . Melee Attacks . | . . . Impact . | . . . Slashing . | . . . Piercing . | . . . Sneak Attacks . | . . . Combat Hostiles . | . . . Follow-up Attacks . | . . . Damage Inflicted 2387 | 131 1720 536 Guns 1949 | 131 1595 223 Cannons 124 | . 124 . Explosions 313 | . . 313 Melee . | . . . Ramming 1 | . 1 . Kinetic 1663 | 41 1399 223 Thermal 410 | 90 320 . Explosive 313 | . . 313 Electromagnetic . | . . . Impact . | . . . Slashing . | . . . Piercing . | . . . Highest Corruption 4 | . 4 4 Average Corruption 1 | . 1 4 Corruption Purged . | . . . Effects 29 | . 17 12 Message Errors 8 | . 5 3 Matter Fused 2 | . 1 1 Energy Discharges 6 | . 4 2 Data Loss (minor) 7 | . 4 3 Targeting Errors 6 | . 3 3 Overload Shots . | . . . Overflow Damage 24 | . 1 23 Projectiles 1 | . 1 . Explosions 23 | . . 23 Melee . | . . . Knockbacks . | . . . Impact . | . . . Kinetic . | . . . Secondary . | . . . Self-Inflicted Damage 97 | . . 97 Shots 3 | . . 3 Rammed 1 | . 1 . Targets Rammed 2 | . 2 . Kicked . | . . . Crushed 1 | . 1 . Highest Temperature 300 | 60 300 9 Average Temperature 68 | 25 85 3 Received Heat Transfer 373 | . 288 85 Siege Activations . | . . . Robots Corrupted . | . . . Combat Hostiles . | . . . Parts Fried . | . . . Impact Corruptions . | . . . Robots Melted . | . . . Combat Hostiles . | . . . Parts Melted 1 | . 1 . Heat Transferred 909 | 200 709 . Parts Sabotaged . | . . . Parts Stolen . | . . . Parts Stripped . | . . . Power Chain Reactions . | . . . Missiles Intercepted . | . . . Alert | -11 -10 -10 ------- Run | Scr Mat Min Peak Influence 355 | 10 355 186 Initial 121 | . 6 121 Average 220 | 5 251 125 Maximum Alert Level 1 | . 1 . Low Security (%) 34 | 100 17 100 Level 1 65 | . 82 . Level 2 . | . . . Level 3 . | . . . Level 4 . | . . . Level 5 . | . . . High Security . | . . . Max Security . | . . . Squads Dispatched 5 | . 5 . Investigation 4 | . 4 . Extermination . | . . . Reinforcement 1 | . 1 . Assault . | . . . Garrison . | . . . Intercept . | . . . Construction Impeded . | . . . Haulers Reinforced . | . . . Stealth | -11 -10 -10 --------- Run | Scr Mat Min Distress Signals . | . . . Communications Jammed . | . . . Distress Signals . | . . . Times Spotted 53 | . 41 12 Peak Tracking Total 5 | . 4 5 Tactical Retreats 4 | . 4 . Traps | -11 -10 -10 ------- Run | Scr Mat Min Traps Triggered 3 | . 3 . Indirectly . | . . . Trap Hack Attempts . | . . . Triggered . | . . . Disarmed . | . . . Reprogrammed . | . . . Reused . | . . . Traps Extracted . | . . . Installed . | . . . Triggered . | . . . Machines | -11 -10 -10 ---------- Run | Scr Mat Min Machines Disabled 2 | . 2 . Max in Single Turn 1 | . 1 . Machines Sabotaged . | . . . Garrisons Compromised . | . . . Overloaded Fab Kills . | . . . Fab Network Shutdowns . | . . . Hacking | -11 -10 -10 --------- Run | Scr Mat Min Machines Accessed 10 | . 10 . Terminals 7 | . 7 . Fabricators . | . . . Repair Stations 1 | . 1 . Recycling Units 2 | . 2 . Scanalyzers . | . . . Garrison Access . | . . . Total Hacks 36 | . 36 . Successful 23 | . 23 . Failed 13 | . 13 . Catastrophic 1 | . 1 . Database Lockouts . | . . . Manual 26 | . 26 . Terminals 21 | . 21 . Fabricators . | . . . Repair Stations 8 | . 8 . Recycling Units 7 | . 7 . Scanalyzers . | . . . Garrison Access . | . . . Terminal Hacks 2 | . 2 . Robot Analysis 1 | . 1 . Terminal Index 1 | . 1 . Fabricator Hacks . | . . . Repair Station Hacks 8 | . 8 . Scan Component 4 | . 4 . Repair 4 | . 4 . Recycling Unit Hacks 2 | . 2 . Retrieve Components 2 | . 2 . Scanalyzer . | . . . Garrison Access Hacks . | . . . Unauthorized Hacks 11 | . 11 . Terminals 6 | . 6 . Botnet 6 | . 6 . Fabricators . | . . . Repair Stations . | . . . Recycling Units 5 | . 5 . Reject 1 | . 1 . Recyclers 2 | . 2 . Mask 2 | . 2 . Scanalyzers . | . . . Garrison Access . | . . . Data Cores Recovered . | . . . Used . | . . . Hacking Detections 10 | . 10 . Full Trace Events 7 | . 7 . Feedback Events 2 | . 2 . Corruption 2 | . 2 . Feedback Blocked . | . . . Robot Schematics Acquired . | . . . Robots Built . | . . . Matter . | . . . Time . | . . . Total Robot Build Rating . | . . . Part Schematics Acquired . | . . . Parts Built . | . . . Matter . | . . . Time . | . . . Total Part Build Rating . | . . . Parts Repaired 4 | . 4 . Time 110 | . 110 . Parts Recycled . | . . . Recycled Matter . | . . . Retrieved Matter . | . . . Retrieved Components 20 | . 20 . Parts Scanalyzed . | . . . Part Schematics Acquired . | . . . Parts Damaged . | . . . Bothacking | -11 -10 -10 ------------ Run | Scr Mat Min Used RIF Installer . | . . . Robots Hacked . | . . . Non-combat . | . . . Combat . | . . . Robot Hacks Applied . | . . . Relay Couplers Released . | . . . Robots Rewired . | . . . Allies Hacked . | . . . Hacks Repelled . | . . . Allies | -11 -10 -10 -------- Run | Scr Mat Min Total Allies 2 | . . 2 Largest Group 1 | . . 1 Highest-Rated Group 31 | . . 31 Highest-Rated Ally 31 | . . 31 Total Orders . | . . . Ally Attacks 5 | . . 5 Total Damage 64 | . . 64 Kills . | . . . Allies Corrupted . | . . . Allies Melted . | . . . Intel | -11 -10 -10 ------- Run | Scr Mat Min Robot Analysis Total 1 | . 1 . Derelict Logs Recovered 3 | . . 3 Drone Launches . | . . . Drone Recoveries . | . . . Exploration | -11 -10 -10 ------------- Run | Scr Mat Min Turns Passed 2453 | 96 1937 420 Spaces Moved 1077 | 48 819 210 Core 53 | 47 6 . Treads 1024 | 1 813 210 Legs . | . . . Wheels . | . . . Hover . | . . . Flight . | . . . Fastest Speed 50 | 50 100 180 Average Speed 165 | 76 166 180 Slowest Speed 180 | 160 180 180 Overloaded Moves . | . . . Propulsion Burnouts . | . . . Robots Hopped . | . . . Cave-ins Triggered . | . . . Exploration Rate (%) 48 | 3 97 45 Regions Visited 2 Branch Regions 1 Pre-discovered Areas . | . . . Known Exits Taken 1 | . 1 . Unknown Exits Taken 1 | 1 . . Scrap Searched 1 | . . 1 Spaces Dug . | . . . Terrain Destroyed 30 | . . 30 Melee . | . . . Projectile . | . . . AOE 30 | . . 30 Terrain Rammed . | . . . Walls Destroyed . | . . . Machines Disabled . | . . . Actions | -11 -10 -10 --------- Run | Scr Mat Min Total 1482 | 74 1181 227 Wait 148 | . 148 . Move 1075 | 47 818 210 Hop . | . . . Pick Up 40 | 5 35 . Fast Attach 16 | 4 12 . Attach 7 | 1 4 2 Detach 2 | . 2 . Swap 10 | . 9 1 Drop 31 | . 31 . Fire 151 | 17 120 14 Melee . | . . . Ram . | . . . Kick . | . . . Crush 2 | . 2 . Escape Stasis . | . . . Rewire . | . . . Trap . | . . . Miscellaneous . | . . . Route ------- -11/Scrapyard -10/Materials (discovered 5 exits: *Mat x3 / *Min x2) -10/Mines (discovered 1 exit: *Mat) History --------- Turn | Location | Event 9 | -11/Scrapyard | Discovered new exit (range 16) 97 | -11/Scrapyard | Entered Materials 249 | -10/Materials | Discovered new exit (range 16) 249 | -10/Materials | Discovered new exit (range 8) 302 | -10/Materials | Build established: Mutant 418 | -10/Materials | Identified exit to Materials 491 | -10/Materials | Identified exit to Mines 668 | -10/Materials | Discovered exit to Mines (range 14) 941 | -10/Materials | Discovered exit to Materials (range 12) 1212 | -10/Materials | Build established: Scavenger-Mutant 1577 | -10/Materials | Build established: Mutant 1680 | -10/Materials | Repaired Lgt. Treads 1708 | -10/Materials | Repaired Lgt. Treads 1735 | -10/Materials | Repaired Assault Rifle 1769 | -10/Materials | Repaired Armor Integrity Analyzer 1910 | -10/Materials | Discovered exit to Materials (range 10) 2034 | -10/Materials | Entered Mines 2035 | -10/Mines | Assembled infested the area 2064 | -10/Mines | Core integrity fell below 50% 2088 | -10/Mines | Core integrity fell below 20% 2110 | -10/Mines | Destroyed 9 combat bots 2120 | -10/Mines | Lost 4 parts (1p1n2w) 2200 | -10/Mines | Discovered exit to Materials (range 7) 2220 | -10/Mines | Learned location of 1 exit from Materials 2413 | -10/Mines | Learned 2 Materials zone layouts 2454 | -10/Mines | Destroyed by as-13542 with Assembled Heavy Rifle Last Messages --------------- 02116_ The unstable cave ceiling collapses. 02120_ U-05 Engineer lays Concrete. 02161_ K-01 Serf collects debris. 02179_ SPX3V7=P|=P:B4ZG8G OP:I&=L3&R8L 02200_ EXIT=FOUND: MATERIALS 02220_ Acquired derelict log, extracted data. Data stored: Materials exits (x1). 02262_ Acquired derelict log, extracted data. Data stored: Storage entrances (x1). 02281_ Acquired 21 matter. 02286_ System corrupted: Energy discharge (-28). 02317_ D4MORJ4P65T|ZWEH5VIVOH1YSLKOU 02353_ System corrupted: Component data lost. 02373_ POZ,9P,S6H:H44WQ=Q69A98ZB1ARQQ54CDT9VR5Y 02404_ System corrupted: Component data lost. 02413_ Acquired derelict log, extracted data. Data stored: Materials zone layouts (x2). 02429_ System corrupted: Component data lost. 02453_ as-56985 destroyed. 02453_ Switching to secondary target: as-13542. Map ----- +----------------------------------------------------+ | ?????????????????????????????????????????????????? | | ?????????????????????????????????????????????????? | | ????????????????????????????????????????????????#? | | ?????????????????????????????????????????####?? #? | | ???????????????????????????????????????## ### ## | | ??????????????????????????????????????## #% | | ?????????????????????????????????????## =%!= | | ?????????????????????????????????????# * | | ?????????????????????????????????????# % # | | ????????????????????????????????????? #????? | | ????????????????????????????????????### ##????? | | ????????????????????????????????????# #????? | | ????????????????????????????????????# #?????? | | ???????????????????????????????????## ##?????? | | ??????????????????????????????????## ! # #?????? | | ??????????????????????????????????# =% #?????? | | ?????????????####???????????????### = # #?????? | | ????????????## ##??????????????# # #?????? | | ????????????# #??????????????# ### #* #?????? | | ????????????# #??????????????# # # #?###?? | | ???????????## #??????????????# # # #?? | | ???????????# ##?????????????# ## #??? | | ???????????# #????????????## # #??? | | ???????????# #???????????## # ##??? | | ???????????### ##?###########% * ######???? | | ?????????????# ##??# @ !% ! # #??????? | | ?????????????# #???# % % a %! ###??????? | | ?????????????# #???# ######## % *## ##???????? | | ?????????????# ##### #?????# ######????????? | | ?????????????# #?????# ##?????????????? | | #####????????### ######?????# ##?????????????? | | #??????????# ####???????# #?????????????? | | #######????# #???????# #?????????????? | | ## #????#### #???????## ##?????????????? | | ######## #???????# ##???????# ###??????????????? | | #??????# #??????## ##??????# #######??????????? | | #??????# #??????# #??????# #??????????? | | #####??# #?????## #?????## ##### #??????????? | | #??# #???### #?????# #### #??????????? | | #### #??# #??##* """ #?????# #??????????? | | ???# #??# ####!% """ ##???## #### #??????????? | | ???# #??# %* *=!! """ ##### #??# #??????????? | | ???# #??# ! !%=% """ ##??# ###### """ ? | | ???# #??#####%## !%! #???# """ ? | | ???# #??#####=### #???######## """ ? | | #### #??# =% ### ## ##????????????????? | | #??# < #?## #########?????????????????? | | #### #### #??#####?????????????????????????? | | ???# #????????????????????????????????? | | ???###### #????????????????????????????????? | +----------------------------------------------------+ Best States ------------- Heat Dissipation 25 Energy Generation 10 Energy Capacity 250 Matter Stores 300 Matter Capacity 300 Sight Range 16 Terrain Scan Density 10 Evasion (%) 50 Recoil Reduction 2 Item Schematics ----------------- None Robot Schematics ------------------ None Fabricated ------------ Nothing Alien Tech Used ----------------- None Achievements -------------- None Challenges ------------ None Game ------ Seed PhasingChipThrower Manual? 0 Play Time 00:16:43 Cumulative 347.5 hours Start 2021.07.03 @ 20:02:52 End 2021.07.04 @ 05:25:31 Sessions 3 Manual Loads 0 Difficulty Rogue Special Mode None Game No. 298 Rogue 298 Adventurer 0 Explorer 0 Win Type - Total 1 Types 0/0/0/1/0/0/0/0/0 Lore% 69 Gallery% 77 Achievement% 59 Wizard Run 0 Options --------- ASCII 0 Keyboard 1 Movement Numpad Keybinds 0 Fullscreen 1 Font 12/Terminus Map View 83x54 Tactical HUD 1 Map Filters NONE Filters NONE Steam 1 RUN: 515fd684-0e83-4d02-9b24-be5a09478edc